lending/lending_fUSD_20250808
["ID","MTS","AMOUNT","RATE_DAILY","PERIOD"]
[378024164,1754673047130,-547.59,0.00018666,2]
[378024165,1754673047140,-400.0,0.00018666,2]
[378024166,1754673047149,-400.0,0.00018666,2]
[378024167,1754673047158,-400.0,0.00018666,2]
[378024168,1754673047168,-400.0,0.00018666,2]
[378024169,1754673047177,-1108.86,0.00018666,2]
[378024170,1754673047187,-400.0,0.00018666,2]
[378024171,1754673047196,-400.0,0.00018666,2]
[378024172,1754673047206,-400.0,0.00018666,2]
[378024173,1754673047216,-400.0,0.00018666,2]
[378024174,1754673047227,-400.0,0.00018666,2]
[378024175,1754673047236,-400.0,0.00018666,2]
[378024176,1754673047245,-400.0,0.00018666,2]
[378024177,1754673047254,-478.24,0.00018666,2]
[378024178,1754673047264,-490.62,0.00018666,2]
[378024179,1754673047275,-482.86,0.00018666,2]
[378024180,1754673047285,-400.0,0.00018666,2]
[378024181,1754673047295,-490.3,0.00018666,2]
[378024182,1754673047304,-400.0,0.00018666,2]
[378024183,1754673047313,-400.0,0.00018666,2]
[378024184,1754673047323,-400.0,0.00018666,2]
[378024185,1754673047335,-486.26,0.00018666,2]
[378024186,1754673047345,-3785.19,0.00018666,2]
[378024187,1754673047355,-400.0,0.00018666,2]
[378024188,1754673047364,-227.2,0.00018666,2]
[378024189,1754673047374,-400.0,0.00018666,2]
[378024190,1754673047384,-400.0,0.00018666,2]
[378024191,1754673047393,-1778.92,0.00018666,2]
[378024192,1754673047403,-400.0,0.00018666,2]
[378024193,1754673047413,-400.0,0.00018666,2]
[378024194,1754673047422,-714.26,0.00018666,2]
[378024195,1754673047432,-157.065773,0.00018666,2]
[378024196,1754673047441,-400.0,0.00018666,2]
[378024197,1754673047451,-3415.27,0.00018666,2]
[378024198,1754673047460,-770.72,0.00018666,2]
[378024199,1754673047469,-400.0,0.00018666,2]
[378024200,1754673047478,-190.132535,0.00018666,2]
[378024201,1754673047488,-1161.19,0.00018666,2]
[378024202,1754673047497,-400.0,0.00018666,2]
[378024203,1754673047507,-400.0,0.00018666,2]
[378024204,1754673047516,-400.0,0.00018666,2]
[378024205,1754673047525,-400.0,0.00018666,2]
[378024206,1754673047534,-777.66,0.00018666,2]
[378024207,1754673047544,-400.0,0.00018666,2]
[378024208,1754673047553,-1393.44,0.00018666,2]
[378024209,1754673047563,-400.0,0.00018666,2]
[378024210,1754673047572,-400.0,0.00018666,2]
[378024211,1754673047583,-471.8,0.00018666,2]
[378024212,1754673047594,-422.66,0.00018666,2]
[378024213,1754673047604,-400.0,0.00018666,2]
[378024214,1754673047613,-400.0,0.00018666,2]
[378024215,1754673047622,-2631.29,0.00018666,2]
[378024216,1754673047633,-914.48,0.00018666,2]
[378024217,1754673047643,-458.67,0.00018666,2]
[378024218,1754673047654,-400.0,0.00018666,2]
[378024219,1754673047664,-400.0,0.00018666,2]
[378024220,1754673047674,-400.0,0.00018666,2]
[378024221,1754673047685,-400.0,0.00018666,2]
[378024222,1754673047695,-400.0,0.00018666,2]
[378024223,1754673047705,-400.0,0.00018666,2]
[378024224,1754673047715,-400.0,0.00018666,2]
[378024225,1754673047727,-400.0,0.00018666,2]
[378024226,1754673047739,-450.17,0.00018666,2]
[378024227,1754673047748,-401.29,0.00018666,2]
[378024228,1754673047761,-786.48,0.00018666,2]
[378024229,1754673047770,-862.44,0.00018666,2]
[378024230,1754673047779,-415.74,0.00018666,2]
[378024231,1754673047788,-1019.05,0.00018666,2]
[378024232,1754673047798,-520.02536208,0.00018666,2]
[378024233,1754673047808,-400.0,0.00018666,2]
[378024234,1754673047817,-841.24,0.00018666,2]
[378024235,1754673047826,-1889.45,0.00018666,2]
[378024236,1754673047836,-889.16,0.00018666,2]
[378024237,1754673047845,-819.19,0.00018666,2]
[378024238,1754673047855,-400.0,0.00018666,2]
[378024239,1754673047864,-1929.46,0.00018666,2]
[378024240,1754673047873,-514.78,0.00018666,2]
[378024241,1754673047882,-400.0,0.00018666,2]
[378024242,1754673047890,-400.0,0.00018666,2]
[378024243,1754673047899,-400.0,0.00018666,2]
[378024244,1754673047909,-2195.67,0.00018666,2]
[378024245,1754673047918,-454.21,0.00018666,2]
[378024246,1754673047928,-478.82,0.00018666,2]
[378024247,1754673047937,-400.0,0.00018666,2]
[378024248,1754673047947,-618.97,0.00018666,2]
[378024249,1754673047957,-454.98,0.00018666,2]
[378024250,1754673047967,-491.75,0.00018666,2]
[378024251,1754673047977,-400.0,0.00018666,2]
[378024252,1754673047987,-1240.37,0.00018666,2]
[378024253,1754673047997,-2065.5,0.00018666,2]
[378024254,1754673048006,-2787.6,0.00018666,2]
[378024255,1754673048016,-400.0,0.00018666,2]
[378024256,1754673048027,-684.0,0.00018666,2]
[378024257,1754673048040,-4414.7,0.00018666,2]
[378024258,1754673048056,-400.0,0.00018666,2]
[378024259,1754673048069,-2276.88,0.00018666,2]
[378024260,1754673048081,-400.0,0.00018666,2]
[378024261,1754673048094,-497.72,0.00018666,2]
[378024262,1754673048108,-823.86,0.00018666,2]
[378024263,1754673048123,-400.0,0.00018666,2]
[378024264,1754673048139,-511.95,0.00018666,2]
[378024265,1754673048154,-947.9,0.00018666,2]
[378024266,1754673048167,-4582.31,0.00018666,2]
[378024267,1754673048179,-455.89,0.00018666,2]
[378024268,1754673048190,-400.0,0.00018666,2]
[378024269,1754673048203,-400.0,0.00018666,2]
[378024270,1754673048218,-400.0,0.00018666,2]
[378024271,1754673048231,-2632.01,0.00018666,2]
[378024272,1754673048244,-2860.58,0.00018666,2]
[378024273,1754673048259,-3649.59,0.00018666,2]
[378024274,1754673048278,-778.36,0.00018666,2]
[378024275,1754673048294,-869.76,0.00018666,2]
[378024276,1754673048307,-400.0,0.00018666,2]
[378024277,1754673048321,-883.9,0.00018666,2]
[378024278,1754673048335,-660.95,0.00018666,2]
[378024279,1754673048347,-1219.22,0.00018666,2]
[378024280,1754673048363,-743.22,0.00018666,2]
[378024281,1754673048378,-400.0,0.00018666,2]
[378024282,1754673048394,-400.0,0.00018666,2]
[378024283,1754673048415,-1235.86,0.00018666,2]
[378024284,1754673048428,-1004.13,0.00018666,2]
[378024285,1754673048441,-966.37,0.00018666,2]
[378024286,1754673048453,-768.64,0.00018666,2]
[378024287,1754673048464,-431.26,0.00018666,2]
[378024288,1754673048476,-1831.63,0.00018666,2]
[378024289,1754673048489,-477.04,0.00018666,2]
[378024290,1754673048504,-400.0,0.00018666,2]
[378024291,1754673048515,-808.93,0.00018666,2]
[378024292,1754673048525,-400.0,0.00018666,2]
[378024293,1754673048536,-3671.47,0.00018666,2]
[378024294,1754673048548,-400.0,0.00018666,2]
[378024295,1754673048563,-510.25,0.00018666,2]
[378024296,1754673048575,-400.0,0.00018666,2]
[378024297,1754673048587,-1406.27,0.00018666,2]
[378024298,1754673048598,-400.0,0.00018666,2]
[378024299,1754673048609,-857.08,0.00018666,2]
[378024300,1754673048621,-500.0,0.00018666,2]
[378024301,1754673048632,-4979.06,0.00018666,2]
[378024302,1754673048644,-485.28,0.00018666,2]
[378024303,1754673048655,-2648.7,0.00018666,2]
[378024304,1754673048672,-400.0,0.00018666,2]
[378024305,1754673048684,-3649.85,0.00018666,2]
[378024306,1754673048697,-400.0,0.00018666,2]
[378024307,1754673048721,-2858.88,0.00018666,2]
[378024308,1754673048738,-612.23,0.00018666,2]
[378024309,1754673048752,-400.0,0.00018666,2]
[378024310,1754673048764,-2739.76,0.00018666,2]
[378024311,1754673048776,-834.92,0.00018666,2]
[378024312,1754673048788,-400.0,0.00018666,2]
[378024313,1754673048799,-400.0,0.00018666,2]
[378024315,1754673048811,-1811.54,0.00018666,2]
[378024316,1754673048823,-1979.85,0.00018666,2]
[378024317,1754673048835,-2987.62,0.00018666,2]
[378024318,1754673048848,-1311.94,0.00018666,2]
[378024319,1754673048860,-435.71,0.00018666,2]
[378024320,1754673048872,-400.0,0.00018666,2]
[378024321,1754673048885,-400.0,0.00018666,2]
[378024322,1754673048897,-891.96,0.00018666,2]
[378024323,1754673048911,-501.16,0.00018666,2]
[378024324,1754673048923,-3433.58,0.00018666,2]
[378024325,1754673048935,-357.25,0.00018666,2]
[378024326,1754673048946,-433.4,0.00018666,2]
[378024327,1754673048958,-400.0,0.00018666,2]
[378024328,1754673048970,-400.0,0.00018667,2]
[378024329,1754673048981,-400.0,0.00018667,2]
[378024330,1754673048994,-477.5,0.00018667,2]
[378024331,1754673049006,-400.0,0.00018667,2]
[378024332,1754673049017,-400.0,0.00018667,2]
[378024333,1754673049029,-400.0,0.00018667,2]
[378024334,1754673049040,-400.0,0.00018667,2]
[378024335,1754673049052,-400.0,0.00018667,2]
[378024336,1754673049063,-400.0,0.00018667,2]
[378024337,1754673049075,-400.0,0.00018667,2]
[378024338,1754673049087,-400.0,0.00018667,2]
[378024339,1754673049099,-413.48,0.00018667,2]
[378024340,1754673049111,-400.0,0.00018667,2]
[378024341,1754673049122,-400.0,0.00018667,2]
[378024342,1754673049134,-400.0,0.00018667,2]
[378024343,1754673049145,-400.0,0.00018667,2]
[378024344,1754673049157,-400.0,0.00018667,2]
[378024345,1754673049168,-373.81145059,0.00018667,2]
[378024346,1754673049179,-400.0,0.00018667,2]
[378024347,1754673049190,-400.0,0.00018667,2]
[378024348,1754673049202,-400.0,0.00018667,2]
[378024349,1754673049214,-400.0,0.00018667,2]
[378024350,1754673049226,-400.0,0.00018667,2]
[378024351,1754673049238,-400.0,0.00018667,2]
[378024352,1754673049249,-400.0,0.00018667,2]
[378024353,1754673049261,-485.43,0.00018667,2]
[378024354,1754673049272,-400.0,0.00018667,2]
[378024355,1754673049284,-400.0,0.00018667,2]
[378024356,1754673049296,-400.0,0.00018667,2]
[378024357,1754673049308,-400.0,0.00018667,2]
[378024358,1754673049320,-400.0,0.00018667,2]
[378024359,1754673049332,-400.0,0.00018667,2]
[378024360,1754673049343,-400.0,0.00018667,2]
[378024361,1754673049354,-400.0,0.00018667,2]
[378024362,1754673049366,-400.0,0.00018667,2]
[378024363,1754673049378,-400.0,0.00018667,2]
[378024364,1754673049390,-400.0,0.00018667,2]
[378024365,1754673049403,-400.0,0.00018667,2]
[378024366,1754673049415,-400.0,0.00018667,2]
[378024367,1754673049426,-244.81566559,0.00018667,2]
[378024368,1754673049437,-400.0,0.00018667,2]
[378024369,1754673049449,-400.0,0.00018667,2]
[378024370,1754673049461,-400.0,0.00018667,2]
[378024371,1754673049473,-427.97,0.00018667,2]
[378024372,1754673049486,-400.0,0.00018667,2]
[378024373,1754673049498,-400.0,0.00018667,2]
[378024374,1754673049509,-400.0,0.00018667,2]
[378024375,1754673049521,-400.0,0.00018667,2]
[378024376,1754673049533,-400.0,0.00018667,2]
[378024377,1754673049545,-400.0,0.00018667,2]
[378024378,1754673049557,-1140.72,0.00018667,2]
[378024379,1754673049568,-400.0,0.00018667,2]
[378024380,1754673049580,-400.0,0.00018667,2]
[378024381,1754673049592,-400.0,0.00018667,2]
[378024382,1754673049604,-400.0,0.00018667,2]
[378024383,1754673049615,-400.0,0.00018667,2]
[378024384,1754673049627,-400.0,0.00018667,2]
[378024385,1754673049639,-1000.0,0.00018667,2]
[378024386,1754673049650,-400.0,0.00018667,2]
[378024387,1754673049662,-400.0,0.00018667,2]
[378024388,1754673049673,-400.0,0.00018667,2]
[378024389,1754673049684,-500.0,0.00018667,2]
[378024390,1754673049696,-500.0,0.00018667,2]
[378024391,1754673049707,-500.0,0.00018667,2]
[378024392,1754673049719,-400.0,0.00018667,2]
[378024393,1754673049730,-2183.86,0.00018667,2]
[378024394,1754673049741,-400.0,0.00018667,2]
[378024395,1754673049754,-812.11,0.00018667,2]
[378024396,1754673049766,-400.0,0.00018667,2]
[378024397,1754673049778,-507.03,0.00018667,2]
[378024398,1754673049788,-400.0,0.00018667,2]
[378024399,1754673049801,-459.15,0.00018667,2]
[378024400,1754673049812,-300.0,0.00018667,2]
[378024401,1754673049824,-414.53,0.00018667,2]
[378024402,1754673049836,-685.77,0.00018667,2]
[378024403,1754673049847,-400.0,0.00018667,2]
[378024404,1754673049859,-400.0,0.00018667,2]
[378024405,1754673049871,-712.63,0.00018667,2]
[378024406,1754673049883,-400.0,0.00018667,2]
[378024407,1754673049895,-588.45,0.00018667,2]
[378024408,1754673049907,-808.83,0.00018667,2]
[378024409,1754673049918,-400.0,0.00018667,2]
[378024410,1754673049930,-408.19,0.00018667,2]
[378024411,1754673049942,-400.0,0.00018667,2]
[378024412,1754673049954,-400.0,0.00018667,2]
[378024413,1754673049966,-764.62,0.00018667,2]
[378024414,1754673049978,-438.51,0.00018667,2]
[378024415,1754673049990,-400.0,0.00018667,2]
[378024416,1754673050002,-413.65,0.00018667,2]
[378024417,1754673050013,-400.0,0.00018667,2]
[378024418,1754673050026,-1107.31,0.00018667,2]
[378024419,1754673050037,-497.97,0.00018667,2]
[378024420,1754673050049,-808.32,0.00018667,2]
[378024421,1754673050060,-400.0,0.00018667,2]
[378024422,1754673050071,-440.91,0.00018667,2]
[378024423,1754673050083,-417.22,0.00018667,2]
[378024424,1754673050094,-400.0,0.00018667,2]
[378024425,1754673050107,-1052.53,0.00018667,2]
[378024426,1754673050118,-1052.53,0.00018667,2]
[378024427,1754673050128,-400.0,0.00018667,2]
[378024428,1754673050140,-400.0,0.00018667,2]
[378024429,1754673050151,-1050.99,0.00018667,2]
[378024430,1754673050162,-812.05,0.00018667,2]
[378024431,1754673050173,-400.0,0.00018667,2]
[378024432,1754673050185,-400.0,0.00018667,2]
[378024433,1754673050198,-1041.87,0.00018667,2]
[378024434,1754673050211,-555.25,0.00018667,2]
[378024435,1754673050222,-155.22673585,0.00018667,2]
[378024436,1754673050235,-497.91,0.00018667,2]
[378024437,1754673050247,-400.0,0.00018667,2]
[378024438,1754673050259,-400.0,0.00018667,2]
[378024439,1754673050270,-400.0,0.00018667,2]
[378024440,1754673050281,-400.0,0.00018667,2]
[378024441,1754673050292,-400.0,0.00018667,2]
[378024442,1754673050303,-842.9,0.00018667,2]
[378024443,1754673050314,-400.0,0.00018667,2]
[378024444,1754673050326,-400.0,0.00018667,2]
[378024445,1754673050337,-400.0,0.00018667,2]
[378024446,1754673050349,-1362.7,0.00018667,2]
[378024447,1754673050361,-485.11,0.00018667,2]
[378024448,1754673050373,-1196.83,0.00018667,2]
[378024449,1754673050384,-716.94,0.00018667,2]
[378024450,1754673050396,-793.59,0.00018667,2]
[378024451,1754673050407,-400.0,0.00018667,2]
[378024452,1754673050418,-400.0,0.00018667,2]
[378024453,1754673050430,-400.0,0.00018667,2]
[378024454,1754673050441,-492.73,0.00018667,2]
[378024455,1754673050453,-972.33,0.00018667,2]
[378024456,1754673050464,-497.41,0.00018667,2]
[378024457,1754673050476,-1250.67,0.00018667,2]
[378024458,1754673050487,-1120.96,0.00018667,2]
[378024459,1754673050498,-1014.39,0.00018667,2]
[378024460,1754673050510,-400.0,0.00018667,2]
[378024461,1754673050522,-400.0,0.00018667,2]
[378024462,1754673050533,-1274.58,0.00018667,2]
[378024463,1754673050544,-1019.85,0.00018667,2]
[378024464,1754673050556,-400.0,0.00018667,2]
[378024465,1754673050567,-400.0,0.00018667,2]
[378024466,1754673050579,-777.46,0.00018667,2]
[378024467,1754673050590,-993.87,0.00018667,2]
[378024468,1754673050603,-400.0,0.00018667,2]
[378024469,1754673050615,-400.0,0.00018667,2]
[378024470,1754673050627,-1556.25,0.00018667,2]
[378024471,1754673050639,-400.0,0.00018667,2]
[378024472,1754673050651,-400.0,0.00018667,2]
[378024473,1754673050663,-400.0,0.00018667,2]
[378024474,1754673050675,-400.0,0.00018667,2]
[378024475,1754673050686,-400.0,0.00018667,2]
[378024476,1754673050696,-400.0,0.00018667,2]
[378024477,1754673050705,-400.0,0.00018667,2]
[378024478,1754673050715,-400.0,0.00018667,2]
[378024479,1754673050725,-400.0,0.00018667,2]
[378024480,1754673050736,-400.0,0.00018667,2]
[378024481,1754673050745,-1234.23,0.00018667,2]
[378024482,1754673050759,-400.0,0.00018667,2]
[378024483,1754673050768,-400.0,0.00018667,2]
[378024484,1754673050777,-885.82,0.00018667,2]
[378024485,1754673050786,-400.0,0.00018667,2]
[378024486,1754673050795,-400.0,0.00018667,2]
[378024487,1754673050805,-1039.48,0.00018667,2]
[378024488,1754673050815,-400.0,0.00018667,2]
[378024489,1754673050824,-1387.65,0.00018667,2]
[378024490,1754673050834,-400.0,0.00018667,2]
[378024491,1754673050844,-1084.1,0.00018667,2]
[378024492,1754673050853,-400.0,0.00018667,2]
[378024493,1754673050862,-163.86886364,0.00018667,2]
[378024494,1754673050871,-400.0,0.00018667,2]
[378024495,1754673050880,-824.7,0.00018667,2]
[378024496,1754673050890,-501.19,0.00018667,2]
[378024497,1754673050899,-541.63,0.00018667,2]
[378024498,1754673050908,-359.60563227,0.00018667,2]
[378024499,1754673050920,-598.0,0.00018667,2]
[378024500,1754673050930,-400.0,0.00018667,2]
[378024501,1754673050939,-910.53,0.00018667,2]
[378024502,1754673050949,-340.84523557,0.00018667,2]
[378024503,1754673050959,-489.41,0.00018667,2]
[378024504,1754673050969,-1478.74,0.00018667,2]
[378024505,1754673050979,-713.73,0.00018667,2]
[378024506,1754673050989,-1827.3,0.00018667,2]
[378024507,1754673051000,-400.0,0.00018667,2]
[378024508,1754673051010,-400.0,0.00018667,2]
[378024509,1754673051019,-999.34,0.00018667,2]
[378024510,1754673051029,-691.14,0.00018667,2]
[378024511,1754673051039,-1482.25,0.00018667,2]
[378024512,1754673051048,-400.0,0.00018667,2]
[378024513,1754673051057,-1145.32,0.00018667,2]
[378024514,1754673051066,-2635.6,0.00018667,2]
[378024515,1754673051553,-465.22,0.00018667,2]
[378024516,1754673051587,-400.0,0.00018667,2]
[378024517,1754673051605,-400.0,0.00018667,2]
[378024518,1754673051623,-4229.48,0.00018667,2]
[378024519,1754673051634,-400.0,0.00018667,2]
[378024520,1754673051643,-623.81,0.00018667,2]
[378024521,1754673051652,-703.96,0.00018667,2]
[378024522,1754673051662,-1423.01,0.00018667,2]
[378024523,1754673051671,-547.46505554,0.00018667,2]
[378024524,1754673051680,-1223.91,0.00018667,2]
[378024525,1754673051689,-796.56,0.00018667,2]
[378024526,1754673051698,-400.0,0.00018667,2]
[378024527,1754673051708,-3229.2,0.00018667,2]
[378024528,1754673051717,-1295.7,0.00018667,2]
[378024529,1754673051726,-1050.02,0.00018667,2]
[378024530,1754673051736,-523.71,0.00018667,2]
[378024531,1754673051745,-1787.16,0.00018667,2]
[378024532,1754673051756,-400.0,0.00018667,2]
[378024533,1754673051766,-525.08,0.00018667,2]
[378024534,1754673051775,-200.0,0.00018667,2]
[378024535,1754673051784,-6291.97,0.00018667,2]
[378024536,1754673051794,-444.37,0.00018667,2]
[378024537,1754673051803,-799.5,0.00018667,2]
[378024538,1754673051812,-667.49,0.00018667,2]
[378024539,1754673051821,-684.73,0.00018667,2]
[378024540,1754673051830,-994.58,0.00018667,2]
[378024541,1754673051839,-1477.87,0.00018667,2]
[378024542,1754673051848,-1320.38,0.00018667,2]
[378024543,1754673051858,-537.17,0.00018667,2]
[378024544,1754673051867,-527.6,0.00018667,2]
[378024545,1754673051875,-445.05,0.00018667,2]
[378024546,1754673051884,-1495.05,0.00018667,2]
[378024547,1754673051894,-662.07,0.00018667,2]
[378024548,1754673051902,-2689.24,0.00018667,2]
[378024549,1754673051911,-438.9,0.00018667,2]
[378024550,1754673051920,-1453.53,0.00018667,2]
[378024551,1754673051930,-447.33,0.00018667,2]
[378024552,1754673051938,-244.76,0.00018667,2]
[378024553,1754673051947,-400.0,0.00018667,2]
[378024554,1754673051956,-4120.32,0.00018667,2]
[378024555,1754673051965,-808.17,0.00018667,2]
[378024556,1754673051974,-1175.31,0.00018667,2]
[378024557,1754673051983,-757.13,0.00018667,2]
[378024558,1754673051992,-915.42,0.00018667,2]
[378024559,1754673052001,-690.47,0.00018667,2]
[378024560,1754673052011,-1191.63,0.00018667,2]
[378024561,1754673052020,-1191.63,0.00018667,2]
[378024562,1754673052030,-1191.63,0.00018667,2]
[378024563,1754673052039,-3697.39,0.00018667,2]
[378024564,1754673052049,-500.0,0.00018667,2]
[378024565,1754673052057,-500.0,0.00018667,2]
[378024566,1754673052066,-469.89,0.00018667,2]
[378024567,1754673052076,-526.36,0.00018667,2]
[378024568,1754673052086,-4499.96,0.00018667,2]
[378024569,1754673052095,-3972.3,0.00018667,2]
[378024570,1754673052104,-2619.91,0.00018667,2]
[378024571,1754673052113,-462.03320763,0.00018667,2]
[378024572,1754673052122,-696.4,0.00018667,2]
[378024573,1754673052132,-834.87,0.00018667,2]
[378024574,1754673052141,-2776.04,0.00018667,2]
[378024575,1754673052150,-1111.79,0.00018667,2]
[378024576,1754673052159,-400.0,0.00018667,2]
[378024577,1754673052168,-1420.04,0.00018667,2]
[378024578,1754673052178,-1979.85,0.00018667,2]
[378024579,1754673052187,-518.14,0.00018667,2]
[378024580,1754673052196,-400.0,0.00018667,2]
[378024581,1754673052205,-10217.96,0.00018667,2]
[378024582,1754673052214,-1204.09,0.00018667,2]
[378024583,1754673052223,-897.43,0.00018667,2]
[378024584,1754673052233,-4090.08,0.00018667,2]
[378024585,1754673052241,-472.03,0.00018667,2]
[378024586,1754673052250,-400.0,0.00018667,2]
[378024587,1754673052260,-2735.96,0.00018667,2]
[378024588,1754673052269,-6705.13617038,0.00018667,2]
[378024589,1754673052279,-400.0,0.00018668,2]
[378024590,1754673052288,-400.0,0.00018668,2]
[378024591,1754673052297,-400.0,0.00018668,2]
[378024592,1754673052306,-554.56,0.00018668,2]
[378024593,1754673052316,-1333.9,0.00018668,2]
[378024594,1754673052325,-1140.11,0.00018668,2]
[378024595,1754673052335,-431.39,0.00018668,2]
[378024596,1754673052344,-1052.53,0.00018668,2]
[378024597,1754673052353,-428.62,0.00018668,2]
[378024598,1754673052363,-1367.38,0.00018668,2]
[378024599,1754673052372,-400.0,0.00018668,2]
[378024600,1754673052382,-400.0,0.00018668,2]
[378024601,1754673052391,-523.93,0.00018668,2]
[378024602,1754673052401,-830.64,0.00018668,2]
[378024603,1754673052411,-540.88,0.00018668,2]
[378024604,1754673052420,-1300.34,0.00018668,2]
[378024605,1754673052430,-886.85,0.00018668,2]
[378024606,1754673052439,-1100.96,0.00018668,2]
[378024607,1754673052447,-1171.33,0.00018668,2]
[378024608,1754673052456,-708.14,0.00018668,2]
[378024609,1754673052465,-708.44,0.00018668,2]
[378024610,1754673052475,-407.96,0.00018668,2]
[378024611,1754673052484,-1767.86,0.00018668,2]
[378024612,1754673052494,-412.26,0.00018668,2]
[378024613,1754673052503,-741.75,0.00018668,2]
[378024614,1754673052513,-1604.16,0.00018668,2]
[378024615,1754673052522,-1002.23,0.00018668,2]
[378024616,1754673052532,-512.17,0.00018668,2]
[378024617,1754673052541,-3378.99,0.00018668,2]
[378024618,1754673052551,-400.0,0.00018668,2]
[378024619,1754673052561,-3288.6,0.00018668,2]
[378024620,1754673052570,-520.84,0.00018668,2]
[378024621,1754673052579,-400.0,0.00018668,2]
[378024622,1754673052589,-1383.82,0.00018668,2]
[378024623,1754673052598,-400.0,0.00018668,2]
[378024624,1754673052607,-427.64,0.00018668,2]
[378024625,1754673052617,-2643.26,0.00018668,2]
[378024626,1754673052626,-404.96,0.00018668,2]
[378024627,1754673052635,-1133.77,0.00018668,2]
[378024628,1754673052644,-3380.42,0.00018668,2]
[378024629,1754673052653,-1221.67,0.00018668,2]
[378024630,1754673052662,-1191.67,0.00018668,2]
[378024631,1754673052672,-1284.63,0.00018668,2]
[378024632,1754673052681,-400.0,0.00018668,2]
[378024633,1754673052690,-3339.59,0.00018668,2]
[378024634,1754673052700,-400.0,0.00018668,2]
[378024635,1754673052709,-1705.64,0.00018668,2]
[378024636,1754673052718,-1297.72,0.00018668,2]
[378024637,1754673052727,-4231.89,0.00018668,2]
[378024638,1754673052737,-290.06,0.00018668,2]
[378024639,1754673052746,-1362.45,0.00018668,2]
[378024640,1754673052759,-2436.93,0.00018668,2]
[378024641,1754673052768,-450.33,0.00018668,2]
[378024642,1754673052778,-426.63,0.00018668,2]
[378024643,1754673052787,-1000.0,0.00018668,2]
[378024644,1754673052797,-1932.89,0.00018668,2]
[378024645,1754673052807,-434.17,0.00018668,2]
[378024646,1754673052817,-1112.21,0.00018668,2]
[378024647,1754673052827,-453.41,0.00018668,2]
[378024648,1754673052837,-1306.51,0.00018668,2]
[378024649,1754673052848,-1940.96,0.00018668,2]
[378024650,1754673052858,-746.47,0.00018668,2]
[378024651,1754673052868,-400.0,0.00018668,2]
[378024652,1754673052878,-500.0,0.00018668,2]
[378024653,1754673052888,-440.63,0.00018668,2]
[378024654,1754673052896,-400.0,0.00018668,2]
[378024655,1754673052906,-1588.76,0.00018668,2]
[378024656,1754673052916,-1657.89,0.00018668,2]
[378024657,1754673052925,-2257.95,0.00018668,2]
[378024658,1754673052935,-1899.91,0.00018668,2]
[378024659,1754673052945,-7561.16,0.00018668,2]
[378024660,1754673052955,-1171.34,0.00018668,2]
[378024661,1754673052965,-2234.21,0.00018668,2]
[378024662,1754673052975,-1434.3427311,0.00018669,5]
[378024663,1754673052984,-1590.46,0.00018669,2]
[378024664,1754673052994,-2771.44,0.00018669,2]